[Event "Titled Tuesday Blitz February 14 Early 2023"]
[White "Grigoriants, Sergey"]
[Black "Buchenau, Frank"]
[WhiteFideId "4130804"]
[BlackFideId "4604350"]
[WhiteElo "2562"]
[BlackElo "2222"]
[Result "1-0"]
[Round "01"]
[TimeControl "180+2"]
[Date "2023.02.15"]
[WhiteClock "0:00:28"]
[BlackClock "0:00:01"]

1. d4 {[%clk 0:03:00]}  e6 {[%clk 0:02:59]} 2. c4 {[%clk 0:02:58]}  Nf6 {[%clk 0:02:59]} 3. Nf3 {[%clk 0:02:57]}  b6 {[%clk 0:02:59]} 4. Bf4 {[%clk 0:02:54]}  Bb4+ {[%clk 0:02:56]} 5. Nbd2 {[%clk 0:02:53]}  Bb7 {[%clk 0:02:54]} 6. a3 {[%clk 0:02:53]}  Be7 {[%clk 0:02:52]} 7. h3 {[%clk 0:02:50]}  c5 {[%clk 0:02:52]} 8. dxc5 {[%clk 0:02:47]}  bxc5 {[%clk 0:02:44]} 9. e3 {[%clk 0:02:47]}  O-O {[%clk 0:02:43]} 10. Be2 {[%clk 0:02:47]}  Qb6 {[%clk 0:02:41]} 11. Rb1 {[%clk 0:02:47]}  a5 {[%clk 0:02:41]} 12. O-O {[%clk 0:02:46]}  a4 {[%clk 0:02:41]} 13. Ne5 {[%clk 0:02:37]}  d6 {[%clk 0:02:36]} 14. Nd3 {[%clk 0:02:30]}  Nbd7 {[%clk 0:02:04]} 15. Qc2 {[%clk 0:02:23]}  Ne4 {[%clk 0:01:59]} 16. Rfd1 {[%clk 0:02:18]}  Ndf6 {[%clk 0:01:57]} 17. Nf1 {[%clk 0:02:13]}  Bc6 {[%clk 0:01:52]} 18. f3 {[%clk 0:02:10]}  e5 {[%clk 0:01:49]} 19. Bh2 {[%clk 0:02:02]}  Ng5 {[%clk 0:01:48]} 20. Nf2 {[%clk 0:02:00]}  Rab8 {[%clk 0:01:38]} 21. Rd2 {[%clk 0:01:54]}  Ne6 {[%clk 0:01:34]} 22. Rbd1 {[%clk 0:01:53]}  Qb3 {[%clk 0:01:32]} 23. Qc1 {[%clk 0:01:50]}  h6 {[%clk 0:01:18]} 24. Ng3 {[%clk 0:01:49]}  g6 {[%clk 0:01:14]} 25. Rd3 {[%clk 0:01:43]}  Qxb2 {[%clk 0:01:10]} 26. Ng4 {[%clk 0:01:35]}  Qxc1 {[%clk 0:01:00]} 27. Rxc1 {[%clk 0:01:31]}  Nxg4 {[%clk 0:00:58]} 28. hxg4 {[%clk 0:01:31]}  Rb3 {[%clk 0:00:53]} 29. Rxb3 {[%clk 0:01:08]}  axb3 {[%clk 0:00:54]} 30. Rb1 {[%clk 0:01:09]}  Rb8 {[%clk 0:00:43]} 31. Rb2 {[%clk 0:01:09]}  Bd8 {[%clk 0:00:34]} 32. Bd1 {[%clk 0:01:08]}  Ba4 {[%clk 0:00:21]} 33. Ne4 {[%clk 0:01:08]}  Ba5 {[%clk 0:00:20]} 34. Rb1 {[%clk 0:01:06]}  Rb6 {[%clk 0:00:19]} 35. Bg3 {[%clk 0:01:03]}  Kf8 {[%clk 0:00:17]} 36. Nf6 {[%clk 0:01:02]}  Kg7 {[%clk 0:00:14]} 37. Ne4 {[%clk 0:01:01]}  f5 {[%clk 0:00:14]} 38. gxf5 {[%clk 0:00:39]}  gxf5 {[%clk 0:00:15]} 39. Nxd6 {[%clk 0:00:40]}  f4 {[%clk 0:00:12]} 40. Nc8 {[%clk 0:00:36]}  Rc6 {[%clk 0:00:12]} 41. Ne7 {[%clk 0:00:36]}  Rc7 {[%clk 0:00:11]} 42. Nd5 {[%clk 0:00:36]}  Rb7 {[%clk 0:00:10]} 43. exf4 {[%clk 0:00:33]}  exf4 {[%clk 0:00:09]} 44. Nxf4 {[%clk 0:00:33]}  Nxf4 {[%clk 0:00:08]} 45. Bxf4 {[%clk 0:00:34]}  Bc3 {[%clk 0:00:08]} 46. Be3 {[%clk 0:00:33]}  Bd4 {[%clk 0:00:08]} 47. Kf2 {[%clk 0:00:32]}  Bxe3+ {[%clk 0:00:07]} 48. Kxe3 {[%clk 0:00:32]}  Re7+ {[%clk 0:00:07]} 49. Kd2 {[%clk 0:00:32]}  Rd7+ {[%clk 0:00:06]} 50. Kc3 {[%clk 0:00:33]}  Re7 {[%clk 0:00:05]} 51. Bxb3 {[%clk 0:00:29]}  Re3+ {[%clk 0:00:05]} 52. Kc2 {[%clk 0:00:29]}  Re2+ {[%clk 0:00:04]} 53. Kd3 {[%clk 0:00:28]}  Rxg2 {[%clk 0:00:02]} 54. Bxa4 {[%clk 0:00:28]}  Ra2 {[%clk 0:00:01]} 55. Rb3 {[%clk 0:00:28]} 1-0


[Site "https://www.chess.com"]

[Event "Titled Tuesday Blitz February 14 Early 2023"]
[White "Babikov, Ivan"]
[Black "Remizov, Yaroslav"]
[WhiteFideId "4161106"]
[BlackFideId "34134015"]
[WhiteElo "2239"]
[BlackElo "2421"]
[Result "0-1"]
[Round "01"]
[TimeControl "180+2"]
[Date "2023.02.15"]
[WhiteClock "0:00:24"]
[BlackClock "0:01:27"]

1. Nf3 {[%clk 0:02:59]}  d5 {[%clk 0:02:59]} 2. g3 {[%clk 0:03:00]}  Bg4 {[%clk 0:03:00]} 3. Bg2 {[%clk 0:03:00]}  Nd7 {[%clk 0:03:00]} 4. d4 {[%clk 0:03:00]}  Ngf6 {[%clk 0:03:00]} 5. O-O {[%clk 0:02:59]}  e6 {[%clk 0:03:00]} 6. c4 {[%clk 0:02:59]}  c6 {[%clk 0:03:00]} 7. h3 {[%clk 0:02:59]}  Bxf3 {[%clk 0:02:58]} 8. Bxf3 {[%clk 0:02:59]}  Be7 {[%clk 0:02:59]} 9. Nc3 {[%clk 0:02:58]}  O-O {[%clk 0:02:58]} 10. b3 {[%clk 0:02:58]}  a5 {[%clk 0:02:47]} 11. Bb2 {[%clk 0:02:57]}  h6 {[%clk 0:02:46]} 12. Qc2 {[%clk 0:02:57]}  Qc7 {[%clk 0:02:43]} 13. Rad1 {[%clk 0:02:56]}  Rac8 {[%clk 0:02:39]} 14. e4 {[%clk 0:02:54]}  dxe4 {[%clk 0:02:39]} 15. Nxe4 {[%clk 0:02:54]}  Nxe4 {[%clk 0:02:39]} 16. Bxe4 {[%clk 0:02:53]}  Nf6 {[%clk 0:02:37]} 17. Bg2 {[%clk 0:02:52]}  Rfd8 {[%clk 0:02:37]} 18. Rfe1 {[%clk 0:02:51]}  Bb4 {[%clk 0:02:36]} 19. Bc3 {[%clk 0:02:49]}  Bxc3 {[%clk 0:02:34]} 20. Qxc3 {[%clk 0:02:50]}  b5 {[%clk 0:02:31]} 21. Rc1 {[%clk 0:02:33]}  b4 {[%clk 0:02:15]} 22. Qb2 {[%clk 0:02:26]}  c5 {[%clk 0:02:14]} 23. dxc5 {[%clk 0:02:20]}  Qxc5 {[%clk 0:02:14]} 24. Rcd1 {[%clk 0:02:21]}  a4 {[%clk 0:02:07]} 25. Rd2 {[%clk 0:01:49]}  a3 {[%clk 0:02:02]} 26. Qc2 {[%clk 0:01:47]}  Rd4 {[%clk 0:02:01]} 27. Rxd4 {[%clk 0:01:46]}  Qxd4 {[%clk 0:02:01]} 28. Rd1 {[%clk 0:01:46]}  Qe5 {[%clk 0:01:57]} 29. Qd2 {[%clk 0:01:44]}  Rb8 {[%clk 0:01:45]} 30. Qd6 {[%clk 0:01:44]}  Qxd6 {[%clk 0:01:41]} 31. Rxd6 {[%clk 0:01:45]}  Ne8 {[%clk 0:01:39]} 32. Rd7 {[%clk 0:01:40]}  Nf6 {[%clk 0:01:36]} 33. Rd6 {[%clk 0:01:39]}  Kf8 {[%clk 0:01:36]} 34. c5 {[%clk 0:01:38]}  Rc8 {[%clk 0:01:35]} 35. c6 {[%clk 0:01:36]}  Nd5 {[%clk 0:01:29]} 36. Bxd5 {[%clk 0:01:20]}  exd5 {[%clk 0:01:29]} 37. Rxd5 {[%clk 0:01:21]}  Rxc6 {[%clk 0:01:29]} 38. Rb5 {[%clk 0:01:21]}  Rc2 {[%clk 0:01:28]} 39. Rxb4 {[%clk 0:01:21]}  Rxa2 {[%clk 0:01:29]} 40. Ra4 {[%clk 0:01:21]}  Ke7 {[%clk 0:01:29]} 41. Ra7+ {[%clk 0:01:19]}  Ke6 {[%clk 0:01:29]} 42. b4 {[%clk 0:01:19]}  Kd5 {[%clk 0:01:29]} 43. Rxf7 {[%clk 0:00:58]}  Rb2 {[%clk 0:01:28]} 44. Ra7 {[%clk 0:00:56]}  a2 {[%clk 0:01:28]} 45. Kg2 {[%clk 0:00:56]}  Kc4 {[%clk 0:01:28]} 46. b5 {[%clk 0:00:52]}  Kxb5 {[%clk 0:01:28]} 47. Kf3 {[%clk 0:00:46]}  Kc4 {[%clk 0:01:28]} 48. Ke3 {[%clk 0:00:42]}  Kc3 {[%clk 0:01:28]} 49. Rc7+ {[%clk 0:00:42]}  Kb3 {[%clk 0:01:28]} 50. Ra7 {[%clk 0:00:40]}  Rb1 {[%clk 0:01:28]} 51. Rb7+ {[%clk 0:00:36]}  Kc4 {[%clk 0:01:28]} 52. Rc7+ {[%clk 0:00:32]}  Kd5 {[%clk 0:01:28]} 53. Ra7 {[%clk 0:00:26]}  a1=Q {[%clk 0:01:29]} 54. Rxa1 {[%clk 0:00:27]}  Rxa1 {[%clk 0:01:29]} 55. Kf4 {[%clk 0:00:28]}  Ke6 {[%clk 0:01:29]} 56. Kg4 {[%clk 0:00:28]}  Ra4+ {[%clk 0:01:29]} 57. f4 {[%clk 0:00:29]}  Kf6 {[%clk 0:01:29]} 58. Kh5 {[%clk 0:00:29]}  g5 {[%clk 0:01:29]} 59. fxg5+ {[%clk 0:00:26]}  hxg5 {[%clk 0:01:30]} 60. h4 {[%clk 0:00:26]}  gxh4 {[%clk 0:01:26]} 61. gxh4 {[%clk 0:00:24]}  Rb4 {[%clk 0:01:26]} 62. Kh6 {[%clk 0:00:24]}  Rxh4# {[%clk 0:01:27]} 0-1


[Site "https://www.chess.com"]

[Event "Titled Tuesday Blitz February 14 Early 2023"]
[White "Boros, Denes"]
[Black "Wahedi, Ahmad Siar"]
[WhiteFideId "722340"]
[BlackFideId "4651260"]
[WhiteElo "2406"]
[BlackElo "2274"]
[Result "1-0"]
[Round "01"]
[TimeControl "180+2"]
[Date "2023.02.15"]
[WhiteClock "0:00:25"]
[BlackClock "0:00:09"]

1. d4 {[%clk 0:03:00]}  d5 {[%clk 0:02:58]} 2. Nc3 {[%clk 0:03:00]}  e6 {[%clk 0:02:58]} 3. Nf3 {[%clk 0:03:01]}  Nf6 {[%clk 0:02:57]} 4. Bg5 {[%clk 0:03:01]}  c5 {[%clk 0:02:57]} 5. e4 {[%clk 0:03:00]}  cxd4 {[%clk 0:02:55]} 6. Nxd4 {[%clk 0:02:59]}  dxe4 {[%clk 0:02:55]} 7. Nxe4 {[%clk 0:02:59]}  Be7 {[%clk 0:02:55]} 8. Bb5+ {[%clk 0:02:54]}  Bd7 {[%clk 0:02:53]} 9. Bxf6 {[%clk 0:02:52]}  gxf6 {[%clk 0:02:43]} 10. c3 {[%clk 0:02:40]}  a6 {[%clk 0:02:37]} 11. Bxd7+ {[%clk 0:02:35]}  Nxd7 {[%clk 0:02:36]} 12. Qh5 {[%clk 0:02:33]}  O-O {[%clk 0:02:05]} 13. Rd1 {[%clk 0:02:25]}  Qc7 {[%clk 0:01:59]} 14. O-O {[%clk 0:02:20]}  Ne5 {[%clk 0:01:56]} 15. f4 {[%clk 0:02:12]}  Ng6 {[%clk 0:01:50]} 16. f5 {[%clk 0:02:12]}  exf5 {[%clk 0:01:48]} 17. Nxf5 {[%clk 0:02:07]}  Rfd8 {[%clk 0:01:45]} 18. Qh6 {[%clk 0:01:56]}  Qb6+ {[%clk 0:01:44]} 19. Kh1 {[%clk 0:01:35]}  Bf8 {[%clk 0:01:43]} 20. Qh5 {[%clk 0:01:32]}  Rxd1 {[%clk 0:01:39]} 21. Qxd1 {[%clk 0:01:28]}  Re8 {[%clk 0:01:33]} 22. Qf3 {[%clk 0:01:15]}  Bg7 {[%clk 0:01:00]} 23. Nxg7 {[%clk 0:01:06]}  Kxg7 {[%clk 0:00:59]} 24. Nxf6 {[%clk 0:01:06]}  Re3 {[%clk 0:00:49]} 25. Ne8+ {[%clk 0:00:40]}  Kh6 {[%clk 0:00:38]} 26. Qxf7 {[%clk 0:00:41]}  Re7 {[%clk 0:00:33]} 27. Qg8 {[%clk 0:00:30]}  Qb5 {[%clk 0:00:28]} 28. c4 {[%clk 0:00:26]}  Qxe8 {[%clk 0:00:28]} 29. Qd5 {[%clk 0:00:26]}  Re5 {[%clk 0:00:14]} 30. Qxb7 {[%clk 0:00:22]}  Re1 {[%clk 0:00:13]} 31. Qf3 {[%clk 0:00:23]}  Rxf1+ {[%clk 0:00:12]} 32. Qxf1 {[%clk 0:00:24]}  Qe5 {[%clk 0:00:11]} 33. Qc1+ {[%clk 0:00:24]}  Qf4 {[%clk 0:00:10]} 34. Qxf4+ {[%clk 0:00:22]}  Nxf4 {[%clk 0:00:09]} 35. c5 {[%clk 0:00:22]}  Nd3 {[%clk 0:00:09]} 36. c6 {[%clk 0:00:22]}  Nf2+ {[%clk 0:00:07]} 37. Kg1 {[%clk 0:00:22]}  Ne4 {[%clk 0:00:08]} 38. b4 {[%clk 0:00:20]}  Nd6 {[%clk 0:00:08]} 39. Kf2 {[%clk 0:00:21]}  Kg5 {[%clk 0:00:08]} 40. Ke3 {[%clk 0:00:22]}  Kf5 {[%clk 0:00:09]} 41. Kd4 {[%clk 0:00:23]}  Ke6 {[%clk 0:00:09]} 42. Kc5 {[%clk 0:00:23]}  Nc8 {[%clk 0:00:09]} 43. a4 {[%clk 0:00:23]}  Ke7 {[%clk 0:00:09]} 44. b5 {[%clk 0:00:23]}  axb5 {[%clk 0:00:08]} 45. axb5 {[%clk 0:00:24]}  Kd8 {[%clk 0:00:09]} 46. b6 {[%clk 0:00:25]}  Ke7 {[%clk 0:00:09]} 47. b7 {[%clk 0:00:25]} 1-0


[Site "https://www.chess.com"]

[Event "Titled Tuesday Blitz February 14 Early 2023"]
[White "Kilic, Eray"]
[Black "Grunberg, Mihai-Lucian"]
[WhiteFideId "44517173"]
[BlackFideId "1204149"]
[WhiteElo "2414"]
[BlackElo "2401"]
[Result "1-0"]
[Round "01"]
[TimeControl "180+2"]
[Date "2023.02.15"]
[WhiteClock "0:00:05"]
[BlackClock "0:00:03"]

1. e4 {[%clk 0:03:00]}  Nf6 {[%clk 0:02:50]} 2. e5 {[%clk 0:03:00]}  Nd5 {[%clk 0:02:50]} 3. d4 {[%clk 0:03:01]}  d6 {[%clk 0:02:50]} 4. Nf3 {[%clk 0:03:01]}  dxe5 {[%clk 0:02:50]} 5. dxe5 {[%clk 0:03:02]}  Bg4 {[%clk 0:02:49]} 6. h3 {[%clk 0:03:00]}  Bxf3 {[%clk 0:02:48]} 7. Qxf3 {[%clk 0:03:01]}  c6 {[%clk 0:02:41]} 8. Bd3 {[%clk 0:02:55]}  e6 {[%clk 0:02:40]} 9. O-O {[%clk 0:02:55]}  Nd7 {[%clk 0:02:40]} 10. Re1 {[%clk 0:02:55]}  Qc7 {[%clk 0:02:39]} 11. Qg3 {[%clk 0:02:52]}  g6 {[%clk 0:02:34]} 12. Nc3 {[%clk 0:02:31]}  Bg7 {[%clk 0:02:31]} 13. Nxd5 {[%clk 0:02:30]}  cxd5 {[%clk 0:02:30]} 14. Bf4 {[%clk 0:02:29]}  O-O {[%clk 0:02:27]} 15. c3 {[%clk 0:02:28]}  a5 {[%clk 0:02:21]} 16. h4 {[%clk 0:02:27]}  Nc5 {[%clk 0:02:17]} 17. Bc2 {[%clk 0:02:26]}  a4 {[%clk 0:02:13]} 18. h5 {[%clk 0:02:26]}  a3 {[%clk 0:02:11]} 19. b4 {[%clk 0:02:22]}  Na4 {[%clk 0:02:10]} 20. Bxa4 {[%clk 0:02:14]}  Rxa4 {[%clk 0:02:09]} 21. h6 {[%clk 0:02:12]}  Bh8 {[%clk 0:02:08]} 22. Bg5 {[%clk 0:02:12]}  Rc8 {[%clk 0:02:06]} 23. Re3 {[%clk 0:02:11]}  d4 {[%clk 0:02:01]} 24. cxd4 {[%clk 0:02:08]}  Rxb4 {[%clk 0:02:00]} 25. Rd1 {[%clk 0:02:02]}  Qc2 {[%clk 0:01:49]} 26. Qf3 {[%clk 0:01:56]}  Qxa2 {[%clk 0:01:35]} 27. Bf6 {[%clk 0:01:50]}  Rb1 {[%clk 0:01:25]} 28. Ree1 {[%clk 0:01:50]}  Rxd1 {[%clk 0:01:19]} 29. Rxd1 {[%clk 0:01:50]}  Qd5 {[%clk 0:01:18]} 30. Qf4 {[%clk 0:01:47]}  Qb3 {[%clk 0:01:08]} 31. Rf1 {[%clk 0:01:46]}  Qd3 {[%clk 0:00:55]} 32. Rc1 {[%clk 0:00:46]}  Ra8 {[%clk 0:00:44]} 33. Bxh8 {[%clk 0:00:44]}  Qf5 {[%clk 0:00:44]} 34. Qe3 {[%clk 0:00:17]}  a2 {[%clk 0:00:34]} 35. Qc3 {[%clk 0:00:15]}  Qb1 {[%clk 0:00:34]} 36. Kh2 {[%clk 0:00:12]}  Qxc1 {[%clk 0:00:33]} 37. Qxc1 {[%clk 0:00:13]}  a1=Q {[%clk 0:00:33]} 38. Qf4 {[%clk 0:00:13]}  Qa3 {[%clk 0:00:24]} 39. Qf6 {[%clk 0:00:13]}  Qf8 {[%clk 0:00:23]} 40. Bg7 {[%clk 0:00:13]}  Qd8 {[%clk 0:00:22]} 41. Qf4 {[%clk 0:00:14]}  Ra4 {[%clk 0:00:19]} 42. g3 {[%clk 0:00:13]}  Rxd4 {[%clk 0:00:16]} 43. Qe3 {[%clk 0:00:13]}  Rd3 {[%clk 0:00:15]} 44. Qa7 {[%clk 0:00:12]}  Rd2 {[%clk 0:00:14]} 45. Bf6 {[%clk 0:00:12]}  Qc8 {[%clk 0:00:12]} 46. Qe3 {[%clk 0:00:12]}  Qc2 {[%clk 0:00:09]} 47. Kg2 {[%clk 0:00:11]}  Qc6+ {[%clk 0:00:09]} 48. Kh2 {[%clk 0:00:11]}  Qc2 {[%clk 0:00:09]} 49. Kg1 {[%clk 0:00:08]}  Qd1+ {[%clk 0:00:09]} 50. Kg2 {[%clk 0:00:08]}  Qc2 {[%clk 0:00:09]} 51. Qa7 {[%clk 0:00:06]}  Qc6+ {[%clk 0:00:07]} 52. Kh2 {[%clk 0:00:06]}  Qc8 {[%clk 0:00:06]} 53. Bg5 {[%clk 0:00:06]}  b5 {[%clk 0:00:05]} 54. Bxd2 {[%clk 0:00:05]}  b4 {[%clk 0:00:05]} 55. Bxb4 {[%clk 0:00:05]}  Qf8 {[%clk 0:00:03]} 56. Bxf8 {[%clk 0:00:05]} 1-0


[Site "https://www.chess.com"]

[Event "Titled Tuesday Blitz February 14 Early 2023"]
[White "Sowul, Bartosz"]
[Black "Boruchovsky, Avital"]
[WhiteFideId "1137590"]
[BlackFideId "2800055"]
[WhiteElo "2269"]
[BlackElo "2539"]
[Result "1/2-1/2"]
[Round "01"]
[TimeControl "180+2"]
[Date "2023.02.15"]
[WhiteClock "0:00:22"]
[BlackClock "0:00:36"]

1. e4 {[%clk 0:02:58]}  c5 {[%clk 0:02:58]} 2. Nc3 {[%clk 0:02:57]}  Nc6 {[%clk 0:02:58]} 3. Bb5 {[%clk 0:02:58]}  Nd4 {[%clk 0:02:57]} 4. Nf3 {[%clk 0:02:57]}  Nxb5 {[%clk 0:02:57]} 5. Nxb5 {[%clk 0:02:58]}  a6 {[%clk 0:02:57]} 6. Nc3 {[%clk 0:02:58]}  b5 {[%clk 0:02:57]} 7. d4 {[%clk 0:02:56]}  cxd4 {[%clk 0:02:57]} 8. Qxd4 {[%clk 0:02:54]}  e6 {[%clk 0:02:48]} 9. O-O {[%clk 0:02:41]}  Ne7 {[%clk 0:02:47]} 10. Bf4 {[%clk 0:02:39]}  Nc6 {[%clk 0:02:41]} 11. Qd2 {[%clk 0:02:37]}  b4 {[%clk 0:02:41]} 12. Nd5 {[%clk 0:02:31]}  d6 {[%clk 0:02:37]} 13. Nxb4 {[%clk 0:02:23]}  Nxb4 {[%clk 0:02:33]} 14. Qxb4 {[%clk 0:02:24]}  e5 {[%clk 0:02:23]} 15. Bg5 {[%clk 0:02:16]}  Qc7 {[%clk 0:02:18]} 16. Rad1 {[%clk 0:02:11]}  h6 {[%clk 0:02:17]} 17. Bh4 {[%clk 0:02:00]}  Rb8 {[%clk 0:01:56]} 18. Qa4+ {[%clk 0:01:54]}  Qd7 {[%clk 0:01:51]} 19. Qa5 {[%clk 0:01:51]}  g5 {[%clk 0:01:39]} 20. Nxe5 {[%clk 0:01:39]}  Qb5 {[%clk 0:01:35]} 21. Qc7 {[%clk 0:01:37]}  Be6 {[%clk 0:01:21]} 22. Nc6 {[%clk 0:01:25]}  Rc8 {[%clk 0:01:17]} 23. Nd4 {[%clk 0:00:34]}  Rxc7 {[%clk 0:01:13]} 24. Nxb5 {[%clk 0:00:34]}  axb5 {[%clk 0:01:14]} 25. Bg3 {[%clk 0:00:34]}  Rxc2 {[%clk 0:01:14]} 26. Bxd6 {[%clk 0:00:35]}  Bxd6 {[%clk 0:01:14]} 27. Rxd6 {[%clk 0:00:36]}  Rxb2 {[%clk 0:01:14]} 28. Rb6 {[%clk 0:00:34]}  Bxa2 {[%clk 0:01:09]} 29. Rb8+ {[%clk 0:00:33]}  Ke7 {[%clk 0:01:09]} 30. Rxh8 {[%clk 0:00:34]}  b4 {[%clk 0:01:07]} 31. Rxh6 {[%clk 0:00:34]}  b3 {[%clk 0:01:07]} 32. Rb6 {[%clk 0:00:33]}  Re2 {[%clk 0:01:07]} 33. h3 {[%clk 0:00:31]}  b2 {[%clk 0:01:04]} 34. g3 {[%clk 0:00:30]}  b1=Q {[%clk 0:00:38]} 35. Rfxb1 {[%clk 0:00:28]}  Bxb1 {[%clk 0:00:39]} 36. Rxb1 {[%clk 0:00:29]}  Rxe4 {[%clk 0:00:40]} 37. Rb5 {[%clk 0:00:27]}  f6 {[%clk 0:00:40]} 38. Kg2 {[%clk 0:00:26]}  Ke6 {[%clk 0:00:39]} 39. Kf3 {[%clk 0:00:26]}  Ra4 {[%clk 0:00:39]} 40. g4 {[%clk 0:00:21]}  Ra3+ {[%clk 0:00:38]} 41. Kg2 {[%clk 0:00:21]}  Rc3 {[%clk 0:00:38]} 42. Rf5 {[%clk 0:00:21]}  Rc2 {[%clk 0:00:36]} 43. Kg3 {[%clk 0:00:21]}  Rc3+ {[%clk 0:00:36]} 44. Rf3 {[%clk 0:00:21]}  Rc4 {[%clk 0:00:36]} 45. Rf5 {[%clk 0:00:21]}  Rc3+ {[%clk 0:00:36]} 46. f3 {[%clk 0:00:22]}  Rc1 {[%clk 0:00:35]} 47. Kg2 {[%clk 0:00:21]}  Rc2+ {[%clk 0:00:35]} 48. Kg3 {[%clk 0:00:22]}  Rc1 {[%clk 0:00:36]} 49. Ra5 {[%clk 0:00:22]}  Rg1+ {[%clk 0:00:35]} 50. Kf2 {[%clk 0:00:21]}  Rh1 {[%clk 0:00:35]} 51. Kg2 {[%clk 0:00:22]}  Rb1 {[%clk 0:00:35]} 52. Ra4 {[%clk 0:00:22]}  Ke5 {[%clk 0:00:35]} 53. Re4+ {[%clk 0:00:21]}  Kd5 {[%clk 0:00:35]} 54. Re8 {[%clk 0:00:21]}  Kd6 {[%clk 0:00:35]} 55. Rf8 {[%clk 0:00:21]}  Ke6 {[%clk 0:00:36]} 56. Rc8 {[%clk 0:00:22]}  Ke5 {[%clk 0:00:36]} 57. Re8+ {[%clk 0:00:22]}  Kd6 {[%clk 0:00:36]} 58. Kg3 {[%clk 0:00:22]}  Rg1+ {[%clk 0:00:35]} 59. Kf2 {[%clk 0:00:22]}  Rh1 {[%clk 0:00:35]} 60. Kg2 {[%clk 0:00:22]}  Rb1 {[%clk 0:00:36]} 1/2-1/2


[Site "https://www.chess.com"]

[Event "Titled Tuesday Blitz February 14 Early 2023"]
[White "Rustemov, Alexander"]
[Black "Jovic, Stanoje"]
[WhiteFideId "4119002"]
[BlackFideId "905020"]
[WhiteElo "2525"]
[BlackElo "2075"]
[Result "1-0"]
[Round "01"]
[TimeControl "180+2"]
[Date "2023.02.15"]
[WhiteClock "0:00:47"]
[BlackClock "0:00:09"]

1. d4 {[%clk 0:03:00]}  Nf6 {[%clk 0:02:59]} 2. c4 {[%clk 0:03:01]}  e6 {[%clk 0:02:59]} 3. Nf3 {[%clk 0:03:01]}  b6 {[%clk 0:02:59]} 4. a3 {[%clk 0:03:01]}  d5 {[%clk 0:02:58]} 5. cxd5 {[%clk 0:02:59]}  exd5 {[%clk 0:02:57]} 6. Bg5 {[%clk 0:02:58]}  Be7 {[%clk 0:02:52]} 7. Nc3 {[%clk 0:02:58]}  O-O {[%clk 0:02:52]} 8. e3 {[%clk 0:02:57]}  Re8 {[%clk 0:02:49]} 9. Bd3 {[%clk 0:02:52]}  Bg4 {[%clk 0:02:49]} 10. h3 {[%clk 0:02:38]}  Bh5 {[%clk 0:02:49]} 11. g4 {[%clk 0:02:31]}  Bg6 {[%clk 0:02:49]} 12. Ne5 {[%clk 0:02:30]}  c5 {[%clk 0:02:44]} 13. Bxg6 {[%clk 0:02:15]}  hxg6 {[%clk 0:02:42]} 14. Qf3 {[%clk 0:02:08]}  cxd4 {[%clk 0:02:39]} 15. exd4 {[%clk 0:02:08]}  Nbd7 {[%clk 0:02:28]} 16. O-O {[%clk 0:02:07]}  Nf8 {[%clk 0:02:21]} 17. Rad1 {[%clk 0:01:59]}  Ne6 {[%clk 0:02:20]} 18. Bxf6 {[%clk 0:01:57]}  gxf6 {[%clk 0:02:13]} 19. Nc6 {[%clk 0:01:55]}  Qd6 {[%clk 0:02:08]} 20. Nxd5 {[%clk 0:01:44]}  Bd8 {[%clk 0:01:25]} 21. Nxd8 {[%clk 0:01:37]}  Rexd8 {[%clk 0:01:24]} 22. Nxf6+ {[%clk 0:01:36]}  Kg7 {[%clk 0:01:21]} 23. Ne4 {[%clk 0:01:34]}  Qe7 {[%clk 0:01:18]} 24. d5 {[%clk 0:01:32]}  Ng5 {[%clk 0:01:12]} 25. Nxg5 {[%clk 0:01:21]}  Qxg5 {[%clk 0:01:11]} 26. Rfe1 {[%clk 0:01:20]}  Rd6 {[%clk 0:01:05]} 27. Re2 {[%clk 0:01:19]}  Rad8 {[%clk 0:01:04]} 28. Red2 {[%clk 0:01:19]}  a5 {[%clk 0:01:03]} 29. Kg2 {[%clk 0:01:19]}  f5 {[%clk 0:01:00]} 30. Qe3 {[%clk 0:01:15]}  f4 {[%clk 0:00:53]} 31. Qf3 {[%clk 0:01:14]}  Rc8 {[%clk 0:00:49]} 32. Re1 {[%clk 0:01:13]}  Rc5 {[%clk 0:00:45]} 33. Re4 {[%clk 0:01:11]}  Rcxd5 {[%clk 0:00:43]} 34. Rxd5 {[%clk 0:01:11]}  Rxd5 {[%clk 0:00:35]} 35. Rxf4 {[%clk 0:01:11]}  Rd7 {[%clk 0:00:31]} 36. Qe3 {[%clk 0:01:08]}  Qd5+ {[%clk 0:00:30]} 37. Qe4 {[%clk 0:01:06]}  Qb5 {[%clk 0:00:28]} 38. b4 {[%clk 0:01:02]}  a4 {[%clk 0:00:28]} 39. Rf3 {[%clk 0:01:01]}  Rd1 {[%clk 0:00:16]} 40. Qe7+ {[%clk 0:00:57]}  Kh6 {[%clk 0:00:15]} 41. Qf8+ {[%clk 0:00:47]}  Kg5 {[%clk 0:00:11]} 42. Qf4+ {[%clk 0:00:46]}  Kh4 {[%clk 0:00:09]} 43. g5+ {[%clk 0:00:46]}  Kh5 {[%clk 0:00:09]} 44. Qg4# {[%clk 0:00:47]} 1-0


[Site "https://www.chess.com"]